Cogmind - Beta 10.2 @@@ ROGUE MODE // 2022.02.22 @ 19:51:14 Player: mogwok Result: Destroyed by G-47 Trooper with Particle Gun Performance ------------- Evolutions (1) 500 Regions Visited (3) 600 Robots Destroyed (13) 65 Value Destroyed (221) 221 Prototype IDs (4) 80 Alien Tech Used (0) 0 Bonus (0) 0 TOTAL SCORE: 1466 Bonus ------- None Cogmind --------- Core Integrity 0/400 Matter 300/300 Energy 99/100 System Corruption 0% Temperature Cool (9) Movement Core (50) Location -9/Mines Parts ------- > --- POWER (1) -------- (None) > --- PROPULSION (3) --- (None) > --- UTILITY (3) ------ Visual Processing Unit Signal Interpreter > --- WEAPON (2) ------- (None) > --- INVENTORY (4) ---- Light Ion Engine Medium Matter Pod (58) ECM Suite Peak State ------------ > --- POWER ------------ Light Ion Engine > --- PROPULSION ------- Flight Unit Flight Unit Flight Unit > --- UTILITY ---------- Visual Processing Unit ECM Suite > --- WEAPON ----------- Light Assault Rifle > --- INVENTORY -------- Light Ion Engine Flight Unit Signal Interpreter EM Pulse Gun [Rating: 8] Favorites ----------- Power Light Ion Engine Engine Light Ion Engine Propulsion Flight Unit Wheel Compact Wheel Flight Unit Flight Unit Utility ECM Suite Device ECM Suite Storage Small Storage Unit Processor Visual Processing Unit Weapon Medium Laser Energy Gun Medium Laser Ballistic Gun Light Assault Rifle Ballistic Cannon Light Cannon Build | -11 -10 -9 -9 ------- Run | Scr Mat Mat Min Slots Evolved 2 | . . 2 . Power . | . . . . Propulsion 1 | . . 1 . Utility 1 | . . 1 . Weapon . | . . . . Parts Attached 25 | 6 9 10 . Power 5 | 2 1 2 . Engine 5 | 2 1 2 . Core . | . . . . Reactor . | . . . . Propulsion 10 | 2 2 6 . Treads . | . . . . Leg . | . . . . Wheel 2 | 2 . . . Hover . | . . . . Flight 8 | . 2 6 . Utility 5 | 1 3 1 . Device 1 | . 1 . . Storage 2 | 1 1 . . Processor 2 | . 1 1 . Hackware . | . . . . Protection . | . . . . Artifact . | . . . . Weapon 5 | 1 3 1 . Energy Gun 3 | 1 1 1 . Energy Cannon . | . . . . Ballistic Gun 1 | . 1 . . Ballistic Cannon 1 | . 1 . . Launcher . | . . . . Special Weapon . | . . . . Impact Weapon . | . . . . Slashing Weapon . | . . . . Piercing Weapon . | . . . . Special Melee Weapon . | . . . . Unidentified Prototypes . | . . . . Parts Lost 11 | . 1 9 1 Power 2 | . . 1 1 Propulsion 6 | . . 6 . Utility . | . . . . Weapon 3 | . 1 2 . Highest Loss Streak 5 | . 1 5 1 Average Slot Usage (%) 82 | . 93 73 30 Engine 12 | . 14 11 8 Wheel 12 | . 22 . . Flight 14 | . 4 29 . Device 11 | . 13 10 . Storage 6 | . 12 . . Processor 6 | . . 12 22 Energy Gun 7 | . 12 1 . Ballistic Gun 4 | . 1 8 . Ballistic Cannon 5 | . 10 . . Naked Turns . | . . . . Heaviest Build 15 | 11 15 6 3 Greatest Support 32 | 32 32 8 3 Greatest Overweight (x) 3 | . 3 1 . Average Overweight (x) . | . . . . Largest Inventory Capacity 6 | 6 6 4 4 Average Capacity 4 | 5 5 4 4 Most Carried 6 | 5 6 4 3 Average Carried 3 | 2 4 3 3 Final Capacity 6 | 6 4 4 4 Final Carried 5 | 5 4 3 3 Class Distribution -------------------- 56% | Mutant 43% | Scavenger-Mutant Dominant Class ---------------- Mutant | -10/Materials Scavenger-Mutant | -9/Materials Mutant | -9/Mines Resources | -11 -10 -9 -9 ----------- Run | Scr Mat Mat Min Matter Collected 524 | 206 125 151 42 Remotely . | . . . . Salvage Created 276 | . 125 151 . Parts 21 | . 8 13 . Haulers Intercepted . | . . . . Recyclers Shooed . | . . . . Parts Field Recycled . | . . . . Retrieved Matter . | . . . . Parts Self-Destructed . | . . . . Prevented . | . . . . Kills | -11 -10 -9 -9 ------- Run | Scr Mat Mat Min Combat Hostiles Destroyed 12 | . 4 8 . Guns 12 | . 4 8 . Classes Destroyed 3 | . 3 . . Watcher 1 | . 1 . . Swarmer 9 | . 2 7 . Grunt 3 | . 2 1 . Best Kill Streak 4 | . 4 4 . Combat Bots Only 4 | . 3 4 . Max Kills in Single Turn 2 | . 2 1 . Gunslinging . | . . . . Exploded . | . . . . Melee . | . . . . Uniques/NPCs Destroyed . | . . . . Combat | -11 -10 -9 -9 -------- Run | Scr Mat Mat Min Damage Taken 1053 | . 250 665 138 Core 482 | . 70 319 93 Absorbed by Shields . | . . . . Core Remaining (%) 86 | 100 72 . . Volleys Fired 44 | . 16 28 . Largest 2 | . 2 1 . Hottest 85 | . 85 40 . Shots Fired 60 | . 32 28 . Gun 44 | . 16 28 . Cannon 16 | . 16 . . Launcher . | . . . . Special . | . . . . Kinetic 42 | . 16 26 . Thermal 16 | . 16 . . Explosive . | . . . . Electromagnetic 2 | . . 2 . Robot Hit Streak 6 | . 6 4 . Robot Miss Streak 5 | . 5 3 . Penetration Max . | . . . . Secondary Targets . | . . . . Shots Hit Robots 31 | . 16 15 . Core Hits 19 | . 8 10 1 Critical Hits 1 | . . 1 . Critical Kills 1 | . . 1 . Critical Parts Destroyed . | . . . . Melee Attacks . | . . . . Impact . | . . . . Slashing . | . . . . Piercing . | . . . . Sneak Attacks . | . . . . Combat Hostiles . | . . . . Follow-up Attacks . | . . . . Damage Inflicted 378 | . 216 156 6 Guns 270 | . 114 156 . Cannons 99 | . 99 . . Explosions . | . . . . Melee . | . . . . Ramming 9 | . 3 . 6 Kinetic 243 | . 99 144 . Thermal 114 | . 114 . . Explosive . | . . . . Electromagnetic 12 | . . 12 . Impact . | . . . . Slashing . | . . . . Piercing . | . . . . Highest Corruption 2 | . 2 . . Average Corruption 1 | . 1 . . Corruption Purged . | . . . . Effects 3 | . 3 . . Message Errors 1 | . 1 . . Heat Flow Errors 1 | . 1 . . Data Loss (minor) 1 | . 1 . . Overload Shots . | . . . . Overflow Damage . | . . . . Projectiles . | . . . . Explosions . | . . . . Melee . | . . . . Knockbacks . | . . . . Impact . | . . . . Kinetic . | . . . . Secondary . | . . . . Self-Inflicted Damage 3 | . 1 . 2 Shots . | . . . . Rammed 6 | . 2 . 4 Targets Rammed 6 | . 2 . 4 Kicked . | . . . . Crushed . | . . . . Highest Temperature 266 | . 266 7 . Average Temperature 119 | . 123 4 . Received Heat Transfer 270 | . 66 129 75 Siege Activations . | . . . . Robots Corrupted . | . . . . Combat Hostiles . | . . . . Parts Fried . | . . . . Impact Corruptions . | . . . . Robots Melted . | . . . . Combat Hostiles . | . . . . Parts Melted . | . . . . Heat Transferred 333 | . 333 . . Parts Sabotaged . | . . . . Parts Stolen . | . . . . Parts Stripped . | . . . . Power Chain Reactions . | . . . . Missiles Intercepted . | . . . . Alert | -11 -10 -9 -9 ------- Run | Scr Mat Mat Min Peak Influence 411 | . 247 411 180 Initial 150 | . . 31 150 Average 97 | . 40 178 156 Maximum Alert Level 2 | . 1 2 . Low Security (%) 85 | 100 96 68 100 Level 1 12 | . 3 27 . Level 2 1 | . . 4 . Level 3 . | . . . . Level 4 . | . . . . Level 5 . | . . . . High Security . | . . . . Max Security . | . . . . Squads Dispatched 3 | . . 3 . Investigation 1 | . . 1 . Extermination . | . . . . Reinforcement 2 | . . 2 . Assault . | . . . . Garrison . | . . . . Intercept . | . . . . Construction Impeded . | . . . . Haulers Reinforced . | . . . . Stealth | -11 -10 -9 -9 --------- Run | Scr Mat Mat Min Distress Signals 3 | . . 3 . Communications Jammed . | . . . . Distress Signals . | . . . . Times Spotted 54 | . 15 32 7 Peak Tracking Total 12 | . 4 12 5 Tactical Retreats 6 | . 3 2 1 Traps | -11 -10 -9 -9 ------- Run | Scr Mat Mat Min Traps Triggered 2 | . 2 . . Indirectly . | . . . . Trap Hack Attempts . | . . . . Triggered . | . . . . Disarmed . | . . . . Reprogrammed . | . . . . Reused . | . . . . Traps Extracted . | . . . . Installed . | . . . . Triggered . | . . . . Machines | -11 -10 -9 -9 ---------- Run | Scr Mat Mat Min Machines Disabled . | . . . . Max in Single Turn . | . . . . Machines Sabotaged . | . . . . Garrisons Compromised . | . . . . Overloaded Fab Kills . | . . . . Fab Network Shutdowns . | . . . . Hacking | -11 -10 -9 -9 --------- Run | Scr Mat Mat Min Machines Accessed 7 | . 3 4 . Terminals 4 | . 2 2 . Fabricators . | . . . . Repair Stations . | . . . . Recycling Units 2 | . 1 1 . Scanalyzers 1 | . . 1 . Garrison Access . | . . . . Total Hacks 21 | . 9 12 . Successful 15 | . 7 8 . Failed 6 | . 2 4 . Catastrophic . | . . . . Database Lockouts . | . . . . Manual . | . . . . Terminals 11 | . 5 6 . Fabricators . | . . . . Repair Stations . | . . . . Recycling Units 6 | . 4 2 . Scanalyzers 4 | . . 4 . Garrison Access . | . . . . Terminal Hacks 6 | . 4 2 . Record 1 | . 1 . . Prototype ID Bank 2 | . 1 1 . Alert Level 1 | . 1 . . Locate Traps 1 | . 1 . . Dispatch Records 1 | . . 1 . Fabricator Hacks . | . . . . Repair Station Hacks . | . . . . Recycling Unit Hacks 5 | . 3 2 . Report Inventory 4 | . 2 2 . Retrieve Components 1 | . 1 . . Scanalyzer 4 | . . 4 . Insert Component 2 | . . 2 . Analyze 2 | . . 2 . Garrison Access Hacks . | . . . . Unauthorized Hacks . | . . . . Terminals . | . . . . Fabricators . | . . . . Repair Stations . | . . . . Recycling Units . | . . . . Scanalyzers . | . . . . Garrison Access . | . . . . Data Cores Recovered . | . . . . Used . | . . . . Hacking Detections 6 | . 3 3 . Full Trace Events 1 | . . 1 . Feedback Events . | . . . . Feedback Blocked . | . . . . Robot Schematics Acquired . | . . . . Robots Built . | . . . . Matter . | . . . . Time . | . . . . Total Robot Build Rating . | . . . . Part Schematics Acquired 1 | . . 1 . Parts Built . | . . . . Matter . | . . . . Time . | . . . . Total Part Build Rating . | . . . . Parts Repaired . | . . . . Time . | . . . . Parts Recycled . | . . . . Recycled Matter . | . . . . Retrieved Matter . | . . . . Retrieved Components 6 | . 6 . . Parts Scanalyzed 1 | . . 1 . Part Schematics Acquired 1 | . . 1 . Parts Damaged 1 | . . 1 . Bothacking | -11 -10 -9 -9 ------------ Run | Scr Mat Mat Min Used RIF Installer . | . . . . Robots Hacked . | . . . . Non-combat . | . . . . Combat . | . . . . Robot Hacks Applied . | . . . . Relay Couplers Released . | . . . . Robots Rewired . | . . . . Allies Hacked . | . . . . Hacks Repelled . | . . . . Allies | -11 -10 -9 -9 -------- Run | Scr Mat Mat Min Total Allies . | . . . . Largest Group . | . . . . Highest-Rated Group . | . . . . Highest-Rated Ally . | . . . . Total Orders . | . . . . Ally Attacks . | . . . . Total Damage . | . . . . Kills . | . . . . Allies Corrupted . | . . . . Allies Melted . | . . . . Intel | -11 -10 -9 -9 ------- Run | Scr Mat Mat Min Robot Analysis Total . | . . . . Derelict Logs Recovered . | . . . . Drone Launches . | . . . . Drone Recoveries . | . . . . Exploration | -11 -10 -9 -9 ------------- Run | Scr Mat Mat Min Turns Passed 979 | 54 499 388 38 Spaces Moved 960 | 43 391 459 67 Core 84 | 6 . 11 67 Treads . | . . . . Legs . | . . . . Wheels 343 | 37 306 . . Hover . | . . . . Flight 533 | . 85 448 . Fastest Speed 37 | 50 37 37 50 Average Speed 63 | 93 91 38 50 Slowest Speed 280 | 100 280 120 50 Overloaded Moves . | . . . . Propulsion Burnouts . | . . . . Robots Hopped 11 | . . 11 . Cave-ins Triggered . | . . . . Exploration Rate (%) 25 | 4 45 31 20 Regions Visited 3 Branch Regions 1 Pre-discovered Areas . | . . . . Known Exits Taken . | . . . . Unknown Exits Taken 3 | 1 1 1 . Scrap Searched 1 | . . . 1 Spaces Dug . | . . . . Terrain Destroyed . | . . . . Melee . | . . . . Projectile . | . . . . AOE . | . . . . Terrain Rammed . | . . . . Walls Destroyed . | . . . . Machines Disabled . | . . . . Actions | -11 -10 -9 -9 --------- Run | Scr Mat Mat Min Total 1265 | 54 504 636 71 Wait 213 | 1 68 144 . Move 938 | 42 390 439 67 Hop 8 | . . 8 . Pick Up 10 | 5 3 2 . Fast Attach 15 | 4 7 4 . Attach 6 | 1 2 3 . Detach 8 | . 7 1 . Swap 4 | 1 . 3 . Drop 13 | . 9 4 . Fire 44 | . 16 28 . Melee . | . . . . Ram 6 | . 2 . 4 Kick . | . . . . Crush . | . . . . Escape Stasis . | . . . . Rewire . | . . . . Trap . | . . . . Miscellaneous . | . . . . Route ------- -11/Scrapyard -10/Materials -9/Materials -9/Mines History --------- Turn | Location | Event 40 | -11/Scrapyard | Discovered new exit (range 15) 55 | -11/Scrapyard | Entered Materials 316 | -10/Materials | Build established: Mutant 334 | -10/Materials | Discovered new exit (range 15) 554 | -10/Materials | Entered another Materials area 554 | -9/Materials | Evolved 2 slots: Propulsion x1, Utility x1 814 | -9/Materials | Build established: Scavenger-Mutant 872 | -9/Materials | Discovered new exit (range 9) 878 | -9/Materials | Core integrity fell below 50% 889 | -9/Materials | Lost 4 parts (3n1w) 942 | -9/Materials | Entered Mines 966 | -9/Mines | Core integrity fell below 20% 969 | -9/Mines | Lost 5 parts (1p3n1w) 980 | -9/Mines | Destroyed by G-47 Trooper with Particle Gun Last Messages --------------- 00932_ Flight Unit destroyed. 00932_ K-01 Serf collects debris. 00934_ Flight Unit destroyed. 00937_ K-01 Serf collects debris. 00938_ Flight Unit destroyed. LOCATION=UNKNOWN GOAL=ESCAPE Something is scanning the area. 00943_ Searching scrap... 00943_ Found 13 Matter. 00943_ Found 29 Matter. 00944_ Acquired 29 matter. 00944_ Acquired 13 matter. 00953_ K-01 Serf collects debris. 00964_ Slammed into C-30 ARC. 00965_ C-30 ARC bursts open, deploying its payload. 00965_ G-47 Trooper unfolds itself. 00965_ G-34 Mercenary unfolds itself. 00965_ Slammed into G-34 Mercenary. 00970_ Lgt. Ion Engine destroyed. Map ----- +----------------------------------------------------+ | | | | | | | | | | | | | | | | | | | | | | | | | ????????????????????????????????? | | ????????????????????????????????? | | ????????????????????????????????? | | ????????????????????????????????? | | ???????????????????????####?????? | | ??????????????????????## ##????? | | ?????????????????????## ###??? | | ?????????????????????# ##?? | | ????????????????????## #?? | | ????????????????????# #?? | | ????????????????????# #?? | | ?????????????????????# #?? | | ??????????# ######g #?? | | ?????????# g @ #??? | | ????????????????###### #??? | | ?????????????????????## ## ##??? | | ??????????????????????# #?###???? | | ??????????????????????# #???????? | | ?????????????????????## ##??????? | | ????????????????????## ##?????? | | ???????????????????## #?????? | | ???????????????????# #?????? | | ???????????????????# ##????? | | ???????????????????## ##???? | | ????????????????????## ##??? | | ?????????????????????### #??? | | ???????????????????????## #??? | | ????????????????????????## ##?? | | ?????????????????????????## #?? | | ??????????????????????????# #?? | | ??????????????????????????# #?? | | ?????????????????????????## #?? | | ?????????????????????????# ##?? | | ?????????????????????????# "#?? | | ?????????????????????????###"%#?? | | ?????????????????????####### "#?? | | ?????????????????????# #?? | | ?????????????????????# #?? | +----------------------------------------------------+ Best States ------------- Heat Dissipation 28 Energy Generation 10 Energy Capacity 250 Matter Stores 300 Matter Capacity 300 Sight Range 18 Terrain Scan Density 10 ECM Strength 1 Evasion (%) 62 Item Schematics ----------------- Flight Unit | -9/Materials | Scanalyzed Robot Schematics ------------------ None Fabricated ------------ Nothing Alien Tech Used ----------------- None Achievements -------------- None Challenges ------------ None Game ------ Seed WardroneSpectralRegenerator Manual? 0 Play Time 00:24:53 Cumulative 50.6 hours Start 2022.02.22 @ 18:10:27 End 2022.02.22 @ 19:51:14 Sessions 1 Manual Loads 0 Difficulty Rogue Special Mode None Game No. 47 Rogue 47 Adventurer 0 Explorer 0 Win Type - Total 0 Types 0/0/0/0/0/0/0/0/0 Lore% 17 Gallery% 41 Achievement% 22 Wizard Run 0 Options --------- ASCII 1 Keyboard 1 Movement Numpad Keybinds 0 Fullscreen 2 Font 18/X11Bold Map View 76x50 Tactical HUD 1 Map Filters NONE Filters NONE Steam 1 RUN: e006dfcd-24a4-4d9f-839b-6c2d9332b717